[Event "Croatian junior league 2021"]
[Site "Rabac"]
[Date "2021.04.08"]
[Round "6.16"]
[White "Zekic, Patrik"]
[Black "Denic, Marin"]
[Result "1-0"]
[ECO "E32"]
[WhiteElo "1731"]
[BlackElo "1914"]
[Annotator "NA"]
[PlyCount "65"]
[EventDate "2021.04.06"]
[EventType "swiss"]
[EventCountry "CRO"]
[SourceTitle "playchess.com"]
[Source "ChessBase"]
[SourceQuality "1"]
[TimeControl "5400+30"]

1. d4 {[%emt 0:00:00]} Nf6 {[%emt 0:02:37]} 2. c4 {[%emt 0:00:00]} e6 {[%emt 0:00:28]} 3. Nc3 {[%emt 0:00:00]} Bb4 {[%emt 0:00:19]} 4. a3 {[%emt 0:02:39]} Bxc3+ {[%emt 0:00:21]} 5. bxc3 {[%emt 0:00:02]} O-O {[%emt 0:00:09]} 6. Qc2 {[%emt 0:01:22]} c5 {[%emt 0:01:15]} 7. e3 {[%emt 0:00:13]} d6 {[%emt 0:03:06]} 8. Bd3 {[%emt 0:01:21]} Nc6 {[%emt 0:00:28]} 9. Ne2 {[%emt 0:01:02]} b6 {[%emt 0:02:42]} 10. O-O {[%emt 0:03:56]} Na5 {[%emt 0:03:10]} 11. Ng3 {[%emt 0:02:12]} Ba6 {[%emt 0:02:10]} 12. Qe2 {[%emt 0:09:50]} cxd4 {[%emt 0:10:19]} 13. cxd4 {[%emt 0:18:18]} Rc8 {[%emt 0:05:54]} 14. Bd2 {[%emt 0:06:56]} Nxc4 {[%emt 0:03:39]} 15. Bb4 {[%emt 0:20:21]} Nd5 {[%emt 0:57:26]} 16. Ne4 {[%emt 0:27:23]} Rc6 {[%emt 0:02:35]} 17. Nxd6 {[%emt 0:02:17]} Nxd6 {[%emt 0:01:00]} 18. Bxa6 {[%emt 0:00:20]} Nxb4 {[%emt 0:00:22]} 19. axb4 {[%emt 0:00:06]} Qc7 {[%emt 0:00:26]} 20. Bd3 {[%emt 0:00:45]} Rd8 {[%emt 0:01:01]} 21. Qd2 {[%emt 0:00:55]} Rc8 {[%emt 0:00:29]} 22. Ba6 {[%emt 0:00:29]} Rd8 {[%emt 0:00:29]} 23. Rfc1 {[%emt 0:00:29]} b5 {[%emt 0:00:31]} 24. Rc5 {[%emt 0:00:34]} Nc4 {[%emt 0:00:32]} 25. Qa2 {[%emt 0:00:27]} Rxc5 {[%emt 0:00:29]} 26. bxc5 {[%emt 0:00:23]} Rb8 {[%emt 0:00:27]} 27. Bxb5 {[%emt 0:00:27]} Rxb5 {[%emt 0:00:23]} 28. Qxc4 {[%emt 0:00:02]} Rb8 {[%emt 0:00:37]} 29. g3 {[%emt 0:00:25]} Qc6 {[%emt 0:00:33]} 30. Qa6 {[%emt 0:00:36]} Qa8 {[%emt 0:00:26]} 31. c6 {[%emt 0:00:43]} Rc8 {[%emt 0:00:33]} 32. Qb7 {[%emt 0:00:31]} g6 {[%emt 0:00:33]} 33. Rxa7 {[%emt 0:00:44]} 1-0

[Event "Croatian junior league 2021"]
[Site "Rabac"]
[Date "2021.04.08"]
[Round "6.17"]
[White "Cvitan, Ena"]
[Black "Bunic, Emanuel"]
[Result "1-0"]
[ECO "E47"]
[WhiteElo "2263"]
[BlackElo "1839"]
[Annotator "NA"]
[PlyCount "75"]
[EventDate "2021.04.06"]
[EventType "swiss"]
[EventCountry "CRO"]
[SourceTitle "playchess.com"]
[Source "ChessBase"]
[SourceQuality "1"]
[TimeControl "5400+30"]

1. d4 {[%emt 0:11:46]} Nf6 {[%emt 0:00:00]} 2. c4 {[%emt 0:00:10]} e6 {[%emt 0:00:00]} 3. Nc3 {[%emt 0:00:27]} Bb4 {[%emt 0:00:19]} 4. e3 {[%emt 0:00:05]} c5 {[%emt 0:01:31]} 5. Bd3 {[%emt 0:02:25]} O-O {[%emt 0:01:17]} 6. Nge2 {[%emt 0:00:37]} d6 {[%emt 0:01:48]} 7. O-O {[%emt 0:00:34]} Re8 {[%emt 0:01:26]} 8. Qc2 {[%emt 0:02:14]} Nc6 {[%emt 0:01:54]} 9. Bd2 {[%emt 0:04:26]} h6 {[%emt 0:04:22]} 10. a3 {[%emt 0:07:14]} Ba5 {[%emt 0:01:27]} 11. Rad1 {[%emt 0:03:09]} Qe7 {[%emt 0:06:33]} 12. Qc1 {[%emt 0:15:05]} Bc7 {[%emt 0:09:27]} 13. f3 {[%emt 0:07:13]} b6 {[%emt 0:06:57]} 14. Ne4 {[%emt 0:02:44]} Bb7 {[%emt 0:01:57]} 15. Nxf6+ {[%emt 0:03:22]} Qxf6 {[%emt 0:00:42]} 16. d5 {[%emt 0:00:33]} exd5 {[%emt 0:04:10]} 17. cxd5 {[%emt 0:00:12]} Ne5 {[%emt 0:07:51]} 18. Bb1 {[%emt 0:02:22]} Ba6 {[%emt 0:04:06]} 19. Rfe1 {[%emt 0:07:18]} Qh4 {[%emt 0:15:34]} 20. Bc3 {[%emt 0:02:55]} Bd8 {[%emt 0:02:43]} 21. Ng3 {[%emt 0:02:01]} g6 {[%emt 0:05:19]} 22. Ne4 {[%emt 0:02:06]} Be7 {[%emt 0:01:47]} 23. b3 {[%emt 0:14:47]} f5 {[%emt 0:02:08]} 24. Nf2 {[%emt 0:00:25]} Bf8 {[%emt 0:01:56]} 25. Qb2 {[%emt 0:01:11]} Rac8 {[%emt 0:02:10]} 26. f4 {[%emt 0:03:19]} Ng4 {[%emt 0:01:07]} 27. Nxg4 {[%emt 0:00:02]} Qxg4 {[%emt 0:00:22]} 28. Rd2 {[%emt 0:03:24]} Rc7 {[%emt 0:00:54]} 29. Rf2 {[%emt 0:00:52]} Bg7 {[%emt 0:05:22]} 30. Rf3 {[%emt 0:00:41]} Bxc3 {[%emt 0:01:38]} 31. Qxc3 {[%emt 0:00:04]} Kh7 {[%emt 0:02:19]} 32. Qf6 {[%emt 0:00:33]} Rd7 {[%emt 0:00:01]} 33. Rg3 {[%emt 0:00:28]} Qh5 {[%emt 0:00:28]} 34. Rxg6 {[%emt 0:00:33]} Rxe3 {[%emt 0:06:14]} 35. Rxe3 {[%emt 0:00:21]} Qd1+ {[%emt 0:00:07]} 36. Kf2 {[%emt 0:00:01]} Qd2+ {[%emt 0:00:50]} 37. Kf3 {[%emt 0:00:24]} Qxd5+ {[%emt 0:00:56]} 38. Kg3 {[%emt 0:00:09]} 1-0

[Event "Croatian junior league 2021"]
[Site "Rabac"]
[Date "2021.04.08"]
[Round "6.18"]
[White "Zadro, Matej"]
[Black "Ghersinich, Enrico"]
[Result "0-1"]
[ECO "B40"]
[WhiteElo "1742"]
[BlackElo "2186"]
[Annotator "NA"]
[PlyCount "72"]
[EventDate "2021.04.06"]
[EventType "swiss"]
[EventCountry "CRO"]
[SourceTitle "playchess.com"]
[Source "ChessBase"]
[SourceQuality "1"]
[TimeControl "5400+30"]

1. e4 {[%emt 0:00:00]} c5 {[%emt 0:01:15]} 2. Nf3 {[%emt 0:00:02]} e6 {[%emt 0:00:53]} 3. d4 {[%emt 0:00:20]} cxd4 {[%emt 0:00:12]} 4. Nxd4 {[%emt 0:00:06]} Nf6 {[%emt 0:00:42]} 5. Nc3 {[%emt 0:00:07]} Bb4 {[%emt 0:00:19]} 6. e5 {[%emt 0:01:25]} Nd5 {[%emt 0:00:19]} 7. Bd2 {[%emt 0:01:11]} Bxc3 {[%emt 0:00:11]} 8. bxc3 {[%emt 0:04:58]} O-O {[%emt 0:00:15]} 9. Bd3 {[%emt 0:01:52]} Nc6 {[%emt 0:01:07]} 10. Qh5 {[%emt 0:08:08]} f5 {[%emt 0:04:43]} 11. Nxc6 {[%emt 0:08:21]} bxc6 {[%emt 0:00:57]} 12. O-O {[%emt 0:04:01]} Qc7 {[%emt 0:05:21]} 13. Rfe1 {[%emt 0:05:15]} c5 {[%emt 0:04:13]} 14. c4 {[%emt 0:09:37]} Ne7 {[%emt 0:07:32]} 15. Rad1 {[%emt 0:12:29]} Bb7 {[%emt 0:07:52]} 16. Re3 {[%emt 0:12:31]} g6 {[%emt 0:01:02]} 17. Qh4 {[%emt 0:05:00]} Rf7 {[%emt 0:00:18]} 18. Rde1 {[%emt 0:03:54]} Qc6 {[%emt 0:05:09]} 19. Rg3 {[%emt 0:05:22]} Raf8 {[%emt 0:10:12]} 20. Bg5 {[%emt 0:08:14]} f4 {[%emt 0:01:41]} 21. Be4 {[%emt 0:00:31]} fxg3 {[%emt 0:00:31]} 22. hxg3 {[%emt 0:03:59]} Nf5 {[%emt 0:01:26]} 23. Bxc6 {[%emt 0:00:15]} Nxh4 {[%emt 0:00:10]} 24. Bxb7 {[%emt 0:00:10]} Nf5 {[%emt 0:00:11]} 25. Be4 {[%emt 0:02:05]} Rb8 {[%emt 0:00:48]} 26. g4 {[%emt 0:00:39]} Nd4 {[%emt 0:01:32]} 27. c3 {[%emt 0:01:12]} Nc6 {[%emt 0:00:14]} 28. Be3 {[%emt 0:00:47]} Nxe5 {[%emt 0:03:12]} 29. Bxc5 {[%emt 0:00:36]} Nxc4 {[%emt 0:00:54]} 30. Bxa7 {[%emt 0:00:39]} Rb2 {[%emt 0:00:10]} 31. Bd3 {[%emt 0:00:35]} Rxa2 {[%emt 0:01:34]} 32. Bc5 {[%emt 0:00:59]} Nb2 {[%emt 0:01:56]} 33. Be4 {[%emt 0:00:38]} d5 {[%emt 0:02:24]} 34. Bf3 {[%emt 0:00:29]} Nd3 {[%emt 0:00:19]} 35. Rxe6 {[%emt 0:00:30]} Nxc5 {[%emt 0:00:19]} 36. Rc6 {[%emt 0:00:26]} Ne4 {[%emt 0:00:32]} 0-1

[Event "Croatian junior league 2021"]
[Site "Rabac"]
[Date "2021.04.08"]
[Round "6.19"]
[White "Purini, Bruno"]
[Black "Horcicka, Jan"]
[Result "0-1"]
[ECO "C50"]
[WhiteElo "1987"]
[BlackElo "1698"]
[Annotator "NA"]
[PlyCount "42"]
[EventDate "2021.04.06"]
[EventType "swiss"]
[EventCountry "CRO"]
[SourceTitle "playchess.com"]
[Source "ChessBase"]
[SourceQuality "1"]
[TimeControl "5400+30"]

1. e4 {[%emt 0:00:51]} e5 {[%emt 0:00:00]} 2. Nf3 {[%emt 0:00:06]} Nc6 {[%emt 0:00:00]} 3. Bc4 {[%emt 0:00:24]} Bc5 {[%emt 0:00:54]} 4. O-O {[%emt 0:00:20]} Nf6 {[%emt 0:00:30]} 5. Nc3 {[%emt 0:00:32]} d6 {[%emt 0:00:58]} 6. h3 {[%emt 0:00:33]} h6 {[%emt 0:00:50]} 7. a3 {[%emt 0:01:05]} g5 {[%emt 0:02:30]} 8. b4 {[%emt 0:04:37]} Bb6 {[%emt 0:00:57]} 9. b5 {[%emt 0:04:11]} Na5 {[%emt 0:02:55]} 10. Be2 {[%emt 0:02:43]} Rg8 {[%emt 0:14:08]} 11. d4 {[%emt 0:23:48]} g4 {[%emt 0:09:11]} 12. hxg4 {[%emt 0:00:44]} exd4 {[%emt 0:00:22]} 13. Nxd4 {[%emt 0:00:43]} Nxg4 {[%emt 0:00:53]} 14. Nf5 {[%emt 0:03:08]} Bxf5 {[%emt 0:21:25]} 15. exf5 {[%emt 0:00:13]} Qh4 {[%emt 0:00:16]} 16. Bxg4 {[%emt 0:00:32]} Rxg4 {[%emt 0:00:10]} 17. Nd5 {[%emt 0:05:48]} O-O-O {[%emt 0:17:17]} 18. Qf3 {[%emt 0:03:08]} Rdg8 {[%emt 0:07:14]} 19. Nf4 {[%emt 0:05:11]} Nc4 {[%emt 0:08:09]} 20. a4 {[%emt 0:02:27]} Ne5 {[%emt 0:02:40]} 21. Qh3 {[%emt 0:01:15]} Rxf4 {[%emt 0:01:42]} 0-1

[Event "Croatian junior league 2021"]
[Site "Rabac"]
[Date "2021.04.08"]
[Round "6.20"]
[White "Kostic, Lovro"]
[Black "Muha, Magdalena"]
[Result "0-1"]
[ECO "A11"]
[WhiteElo "1367"]
[BlackElo "1806"]
[Annotator "NA"]
[PlyCount "88"]
[EventDate "2021.04.06"]
[EventType "swiss"]
[EventCountry "CRO"]
[SourceTitle "playchess.com"]
[Source "ChessBase"]
[SourceQuality "1"]
[TimeControl "5400+30"]

1. d4 {[%emt 0:00:00]} d5 {[%emt 0:00:00]} 2. c4 {[%emt 0:00:00]} c6 {[%emt 0:00:11]} 3. Nc3 {[%emt 0:00:29]} Nf6 {[%emt 0:01:10]} 4. e3 {[%emt 0:00:21]} g6 {[%emt 0:03:01]} 5. Nf3 {[%emt 0:02:34]} Bg7 {[%emt 0:01:56]} 6. b3 {[%emt 0:02:34]} O-O {[%emt 0:01:05]} 7. Bb2 {[%emt 0:02:07]} Re8 {[%emt 0:02:04]} 8. Be2 {[%emt 0:04:04]} Nbd7 {[%emt 0:13:44]} 9. cxd5 {[%emt 0:03:44]} cxd5 {[%emt 0:00:53]} 10. O-O {[%emt 0:01:00]} Nf8 {[%emt 0:09:12]} 11. Rc1 {[%emt 0:04:44]} a6 {[%emt 0:01:15]} 12. Re1 {[%emt 0:04:54]} Ne4 {[%emt 0:04:56]} 13. Nxe4 {[%emt 0:06:23]} dxe4 {[%emt 0:00:07]} 14. Ne5 {[%emt 0:01:57]} Be6 {[%emt 0:02:03]} 15. Qc2 {[%emt 0:02:00]} f6 {[%emt 0:03:07]} 16. Nc4 {[%emt 0:02:01]} Bd5 {[%emt 0:06:33]} 17. Nd2 {[%emt 0:03:06]} Rc8 {[%emt 0:06:02]} 18. Bc4 {[%emt 0:03:40]} Kh8 {[%emt 0:06:07]} 19. Qb1 {[%emt 0:03:38]} f5 {[%emt 0:00:42]} 20. Bxd5 {[%emt 0:00:45]} Qxd5 {[%emt 0:00:27]} 21. Rxc8 {[%emt 0:03:10]} Rxc8 {[%emt 0:00:02]} 22. Nc4 {[%emt 0:00:48]} Nd7 {[%emt 0:13:17]} 23. Rc1 {[%emt 0:12:59]} Rd8 {[%emt 0:01:54]} 24. g3 {[%emt 0:04:39]} g5 {[%emt 0:02:17]} 25. Re1 {[%emt 0:05:21]} b5 {[%emt 0:03:21]} 26. Nd2 {[%emt 0:01:58]} e5 {[%emt 0:00:40]} 27. g4 {[%emt 0:09:55]} exd4 {[%emt 0:01:41]} 28. exd4 {[%emt 0:01:50]} Bxd4 {[%emt 0:03:35]} 29. gxf5 {[%emt 0:00:43]} Kg8 {[%emt 0:03:43]} 30. Bxd4 {[%emt 0:00:30]} Qxd4 {[%emt 0:00:05]} 31. Nxe4 {[%emt 0:00:10]} Ne5 {[%emt 0:00:55]} 32. Re3 {[%emt 0:02:37]} g4 {[%emt 0:01:43]} 33. Kg2 {[%emt 0:02:35]} Qd5 {[%emt 0:01:24]} 34. Kg3 {[%emt 0:01:59]} Rf8 {[%emt 0:00:35]} 35. Nc3 {[%emt 0:02:20]} Qd6 {[%emt 0:00:46]} 36. Ne4 {[%emt 0:02:25]} Qh6 {[%emt 0:00:38]} 37. Kg2 {[%emt 0:02:37]} Nf3 {[%emt 0:00:38]} 38. Kf1 {[%emt 0:00:31]} Qxh2 {[%emt 0:00:50]} 39. Ke2 {[%emt 0:00:33]} Nd4+ {[%emt 0:01:01]} 40. Kd3 {[%emt 0:00:59]} Nxf5 {[%emt 0:00:16]} 41. Re2 {[%emt 0:00:56]} Rd8+ {[%emt 0:00:22]} 42. Kc3 {[%emt 0:00:16]} Qe5+ {[%emt 0:00:14]} 43. Kb4 {[%emt 0:00:41]} Rd4+ {[%emt 0:00:36]} 44. Ka3 {[%emt 0:00:10]} b4+ {[%emt 0:00:23]} 0-1

[Event "Croatian junior league 2021"]
[Site "Rabac"]
[Date "2021.04.08"]
[Round "6.21"]
[White "Karlusic, Luka"]
[Black "Kovac, Petar"]
[Result "1/2-1/2"]
[ECO "D36"]
[WhiteElo "2047"]
[BlackElo "2089"]
[Annotator "NA"]
[PlyCount "55"]
[EventDate "2021.04.06"]
[EventType "swiss"]
[EventCountry "CRO"]
[SourceTitle "playchess.com"]
[Source "ChessBase"]
[SourceQuality "1"]
[TimeControl "5400+30"]

1. d4 {[%emt 0:00:00]} d5 {[%emt 0:00:00]} 2. c4 {[%emt 0:00:00]} e6 {[%emt 0:00:00]} 3. Nc3 {[%emt 0:00:00]} Nf6 {[%emt 0:00:00]} 4. cxd5 {[%emt 0:00:00]} exd5 {[%emt 0:00:00]} 5. Bg5 {[%emt 0:00:00]} c6 {[%emt 0:00:04]} 6. Qc2 {[%emt 0:00:03]} Be7 {[%emt 0:00:08]} 7. e3 {[%emt 0:00:05]} O-O {[%emt 0:00:05]} 8. Bd3 {[%emt 0:00:04]} Nbd7 {[%emt 0:00:07]} 9. Nge2 {[%emt 0:00:29]} Re8 {[%emt 0:00:08]} 10. O-O {[%emt 0:00:10]} Nf8 {[%emt 0:00:31]} 11. Rae1 {[%emt 0:03:25]} g6 {[%emt 0:02:29]} 12. Bh4 {[%emt 0:02:50]} Ne6 {[%emt 0:03:05]} 13. f3 {[%emt 0:05:22]} a6 {[%emt 0:12:36]} 14. Qb3 {[%emt 0:07:16]} b5 {[%emt 0:03:41]} 15. Kh1 {[%emt 0:07:58]} Bb7 {[%emt 0:03:03]} 16. Bb1 {[%emt 0:05:41]} Rc8 {[%emt 0:08:02]} 17. e4 {[%emt 0:26:43]} dxe4 {[%emt 0:12:31]} 18. fxe4 {[%emt 0:00:00]} Nxd4 {[%emt 0:02:47]} 19. Nxd4 {[%emt 0:00:00]} Qxd4 {[%emt 0:00:02]} 20. Bxf6 {[%emt 0:00:00]} Bxf6 {[%emt 0:00:14]} 21. e5 {[%emt 0:00:00]} Rxe5 {[%emt 0:00:51]} 22. Rd1 {[%emt 0:00:00]} Qh4 {[%emt 0:02:12]} 23. Rd7 {[%emt 0:00:00]} Re7 {[%emt 0:07:39]} 24. Rxe7 {[%emt 0:00:00]} Bxe7 {[%emt 0:00:19]} 25. Rxf7 {[%emt 0:00:00]} Kh8 {[%emt 0:05:23]} 26. Qe6 {[%emt 0:04:28]} Bd6 {[%emt 0:02:44]} 27. h3 {[%emt 0:00:26]} Rf8 {[%emt 0:03:08]} 28. Rxf8+ {[%emt 0:04:16]} 1/2-1/2

[Event "Croatian junior league 2021"]
[Site "Rabac"]
[Date "2021.04.08"]
[Round "6.22"]
[White "Stjepic, Borna"]
[Black "Mahecic, Lovre"]
[Result "0-1"]
[ECO "C25"]
[WhiteElo "1825"]
[BlackElo "1981"]
[Annotator "NA"]
[PlyCount "41"]
[EventDate "2021.04.06"]
[EventType "swiss"]
[EventCountry "CRO"]
[SourceTitle "playchess.com"]
[Source "ChessBase"]
[SourceQuality "1"]
[TimeControl "5400+30"]

1. e4 {[%emt 0:00:00]} e5 {[%emt 0:00:00]} 2. Nc3 {[%emt 0:00:00]} Nc6 {[%emt 0:00:00]} 3. g3 {[%emt 0:00:00]} Bc5 {[%emt 0:00:00]} 4. Bg2 {[%emt 0:00:00]} d6 {[%emt 0:00:00]} 5. Na4 {[%emt 0:00:15]} Bb6 {[%emt 0:00:09]} 6. Nxb6 {[%emt 0:00:02]} axb6 {[%emt 0:00:09]} 7. Ne2 {[%emt 0:00:03]} f5 {[%emt 0:00:45]} 8. d4 {[%emt 0:07:28]} fxe4 {[%emt 0:02:30]} 9. dxe5 {[%emt 0:00:17]} Nxe5 {[%emt 0:00:19]} 10. Bxe4 {[%emt 0:00:02]} Nf6 {[%emt 0:00:35]} 11. Bg2 {[%emt 0:00:34]} O-O {[%emt 0:00:57]} 12. h3 {[%emt 0:05:29]} Kh8 {[%emt 0:01:37]} 13. O-O {[%emt 0:04:55]} Bd7 {[%emt 0:01:14]} 14. Nf4 {[%emt 0:05:07]} Qc8 {[%emt 0:02:47]} 15. Kh2 {[%emt 0:03:36]} Bc6 {[%emt 0:00:33]} 16. b3 {[%emt 0:04:36]} Bxg2 {[%emt 0:01:17]} 17. Kxg2 {[%emt 0:00:26]} Ne4 {[%emt 0:05:59]} 18. Qh5 {[%emt 0:11:14]} Qd7 {[%emt 0:06:46]} 19. Bb2 {[%emt 0:03:10]} Qc6 {[%emt 0:04:23]} 20. Qd1 {[%emt 0:10:36]} Nc3+ {[%emt 0:00:22]} 21. Qd5 {[%emt 0:00:44]} 0-1

[Event "Croatian junior league 2021"]
[Site "Rabac"]
[Date "2021.04.08"]
[Round "6.23"]
[White "Mrvac, Petar"]
[Black "Vukojevic, Toni"]
[Result "1/2-1/2"]
[ECO "D00"]
[WhiteElo "1908"]
[BlackElo "1538"]
[Annotator "NA"]
[PlyCount "59"]
[EventDate "2021.04.06"]
[EventType "swiss"]
[EventCountry "CRO"]
[SourceTitle "playchess.com"]
[Source "ChessBase"]
[SourceQuality "1"]
[TimeControl "5400+30"]

1. d4 {[%emt 0:00:00]} d5 {[%emt 0:00:00]} 2. Bf4 {[%emt 0:00:00]} Bf5 {[%emt 0:00:00]} 3. e3 {[%emt 0:00:00]} Nf6 {[%emt 0:00:33]} 4. c3 {[%emt 0:00:09]} e6 {[%emt 0:00:30]} 5. Bd3 {[%emt 0:00:10]} Bg6 {[%emt 0:00:21]} 6. Nf3 {[%emt 0:00:47]} Nbd7 {[%emt 0:00:34]} 7. Bxg6 {[%emt 0:00:18]} hxg6 {[%emt 0:00:10]} 8. Nbd2 {[%emt 0:00:48]} Nh5 {[%emt 0:00:37]} 9. Ne5 {[%emt 0:00:54]} Nxf4 {[%emt 0:00:44]} 10. exf4 {[%emt 0:00:06]} Bd6 {[%emt 0:01:18]} 11. Ndf3 {[%emt 0:01:40]} Bxe5 {[%emt 0:00:26]} 12. fxe5 {[%emt 0:01:33]} c5 {[%emt 0:01:03]} 13. Qd2 {[%emt 0:04:53]} Qc7 {[%emt 0:03:33]} 14. O-O {[%emt 0:01:12]} O-O {[%emt 0:05:21]} 15. Ng5 {[%emt 0:04:45]} Rfe8 {[%emt 0:01:46]} 16. Qe3 {[%emt 0:02:05]} cxd4 {[%emt 0:01:22]} 17. cxd4 {[%emt 0:01:30]} Nf8 {[%emt 0:00:14]} 18. Rac1 {[%emt 0:01:20]} Qe7 {[%emt 0:00:09]} 19. f4 {[%emt 0:03:39]} Rac8 {[%emt 0:02:22]} 20. Rc3 {[%emt 0:01:55]} Rc6 {[%emt 0:02:02]} 21. Rxc6 {[%emt 0:06:01]} bxc6 {[%emt 0:00:07]} 22. Qc3 {[%emt 0:01:48]} Rc8 {[%emt 0:01:25]} 23. Rc1 {[%emt 0:00:57]} f6 {[%emt 0:02:20]} 24. Nf3 {[%emt 0:03:00]} Nd7 {[%emt 0:00:59]} 25. Qa5 {[%emt 0:03:47]} Nb6 {[%emt 0:00:30]} 26. b3 {[%emt 0:01:03]} Qc7 {[%emt 0:04:09]} 27. Qc5 {[%emt 0:05:57]} Kf7 {[%emt 0:01:47]} 28. Qc2 {[%emt 0:10:17]} Nd7 {[%emt 0:02:27]} 29. Nh4 {[%emt 0:05:19]} Nf8 {[%emt 0:00:21]} 30. g4 {[%emt 0:08:43]} 1/2-1/2

[Event "Croatian junior league 2021"]
[Site "Rabac"]
[Date "2021.04.09"]
[Round "7.5"]
[White "Jakrlin, Mihael"]
[Black "Cvitan, Ena"]
[Result "1/2-1/2"]
[ECO "A13"]
[WhiteElo "2106"]
[BlackElo "2263"]
[Annotator "RC"]
[PlyCount "40"]
[EventDate "2021.04.06"]
[EventType "swiss"]
[EventCountry "CRO"]
[SourceTitle "playchess.com"]
[Source "ChessBase"]
[SourceQuality "1"]
[TimeControl "5400+30"]

1. Nf3 {[%emt 0:00:49]} d5 {[%emt 0:10:23]} 2. c4 {[%emt 0:00:27]} e6 {[%emt 0:00:26]} 3. b3 {[%emt 0:00:09]} d4 {[%emt 0:04:53]} 4. g3 {[%emt 0:00:38]} c5 {[%emt 0:00:37]} 5. Bg2 {[%emt 0:00:08]} Nf6 {[%emt 0:01:07]} 6. e3 {[%emt 0:05:23]} Nc6 {[%emt 0:02:00]} 7. exd4 {[%emt 0:00:05]} cxd4 {[%emt 0:00:17]} 8. d3 {[%emt 0:00:05]} Bb4+ {[%emt 0:03:39]} 9. Bd2 {[%emt 0:00:45]} Bd6 {[%emt 0:03:55]} 10. O-O {[%emt 0:01:39]} O-O {[%emt 0:02:22]} 11. Bg5 {[%emt 0:01:18]} h6 {[%emt 0:01:21]} 12. Bxf6 {[%emt 0:00:08]} Qxf6 {[%emt 0:00:03]} 13. a3 {[%emt 0:00:12]} a5 {[%emt 0:00:50]} 14. Nbd2 {[%emt 0:00:24]} Qe7 {[%emt 0:04:12]} 15. Qc1 {[%emt 0:02:03]} f5 {[%emt 0:04:28]} 16. Re1 {[%emt 0:12:47]} Bd7 {[%emt 0:04:40]} 17. Qb2 {[%emt 0:02:46]} Qf6 {[%emt 0:02:46]} 18. Rac1 {[%emt 0:04:30]} Qe7 {[%emt 0:09:05]} 19. Ra1 {[%emt 0:00:04]} Qf6 {[%emt 0:00:15]} 20. Rac1 {[%emt 0:00:07]} Qe7 {[%emt 0:00:21]} 1/2-1/2

[Event "Croatian junior league 2021"]
[Site "Rabac"]
[Date "2021.04.09"]
[Round "7.14"]
[White "Mandaric, Fran"]
[Black "Klapac, Patrik"]
[Result "1/2-1/2"]
[ECO "C62"]
[WhiteElo "1684"]
[BlackElo "1780"]
[Annotator "NA RC"]
[PlyCount "74"]
[EventDate "2021.04.06"]
[EventType "swiss"]
[EventCountry "CRO"]
[SourceTitle "playchess.com"]
[Source "ChessBase"]
[SourceQuality "1"]
[TimeControl "5400+30"]

1. e4 {[%emt 0:00:00]} e5 {[%emt 0:00:00]} 2. Nf3 {[%emt 0:00:00]} Nc6 {[%emt 0:00:06]} 3. Bb5 {[%emt 0:00:00]} d6 {[%emt 0:00:21]} 4. c3 {[%emt 0:00:48]} Bd7 {[%emt 0:00:16]} 5. d3 {[%emt 0:00:39]} h6 {[%emt 0:00:58]} 6. Nbd2 {[%emt 0:07:31]} Nf6 {[%emt 0:03:18]} 7. O-O {[%emt 0:00:24]} Be7 {[%emt 0:02:25]} 8. Re1 {[%emt 0:00:27]} O-O {[%emt 0:01:10]} 9. Nf1 {[%emt 0:01:02]} Nh7 {[%emt 0:01:51]} 10. Bxc6 {[%emt 0:08:27]} Bxc6 {[%emt 0:00:41]} 11. Ng3 {[%emt 0:00:13]} Bd7 {[%emt 0:02:01]} 12. d4 {[%emt 0:01:24]} exd4 {[%emt 0:00:45]} 13. Nxd4 {[%emt 0:01:11]} Re8 {[%emt 0:09:01]} 14. Ndf5 {[%emt 0:03:50]} Bf6 {[%emt 0:04:57]} 15. f4 {[%emt 0:13:11]} Nf8 {[%emt 0:05:02]} 16. Qg4 {[%emt 0:21:31]} Ng6 {[%emt 0:03:07]} 17. Bd2 {[%emt 0:01:06]} Bh4 {[%emt 0:04:11]} 18. Nxh6+ {[%emt 0:06:12]} gxh6 {[%emt 0:01:45]} 19. f5 {[%emt 0:00:22]} Bxg3 {[%emt 0:00:07]} 20. Qxg3 {[%emt 0:00:17]} Kg7 {[%emt 0:01:05]} 21. fxg6 {[%emt 0:04:50]} fxg6 {[%emt 0:03:55]} 22. c4 {[%emt 0:00:41]} Bc6 {[%emt 0:07:48]} 23. Bc3+ {[%emt 0:03:07]} Kh7 {[%emt 0:00:04]} 24. e5 {[%emt 0:01:41]} Qg5 {[%emt 0:08:35]} 25. Qxg5 {[%emt 0:01:50]} hxg5 {[%emt 0:00:02]} 26. e6 {[%emt 0:00:14]} g4 {[%emt 0:04:35]} 27. e7 {[%emt 0:01:15]} Bd7 {[%emt 0:00:59]} 28. Bf6 {[%emt 0:00:55]} Bf5 {[%emt 0:00:30]} 29. Re3 {[%emt 0:02:17]} Kg8 {[%emt 0:01:59]} 30. Rae1 {[%emt 0:00:57]} Kf7 {[%emt 0:00:53]} 31. Bg5 {[%emt 0:00:11]} a6 {[%emt 0:03:47]} 32. a4 {[%emt 0:11:41]} a5 {[%emt 0:05:31]} 33. Bh6 {[%emt 0:00:44]} Rh8 {[%emt 0:03:34]} 34. Bf8 {[%emt 0:00:11]} Re8 {[%emt 0:00:03]} 35. b3 {[%emt 0:01:42]} Rh5 {[%emt 0:01:44]} 36. Rc3 {[%emt 0:02:03]} b6 {[%emt 0:00:24]} 37. Rf1 {[%emt 0:02:49]} Ke6 {[%emt 0:02:51]} 1/2-1/2